bitfinex/quotes_BTCUSD_20220207
["timestamp","ask_amount","ask_price","bid_price","bid_amount"]
[1644236727754,0.00065049,42744.0,42741.0,0.21145052]
[1644236727955,0.004873,42743.0,42741.0,0.21145052]
[1644236728156,0.0049953,42743.0,42741.0,0.21145052]
[1644236728514,0.058533,42742.0,42738.0,0.01883828]
[1644236728913,0.0586553,42742.0,42738.0,0.01883828]
[1644236729113,0.058533,42742.0,42738.0,0.01883828]
[1644236729712,0.0586553,42742.0,42738.0,0.01883828]
[1644236729913,0.05930581,42742.0,42738.0,0.01883828]
[1644236730917,0.0586553,42742.0,42738.0,0.01883828]
[1644236731116,0.05930581,42742.0,42738.0,0.01883828]
[1644236732115,0.0586553,42742.0,42737.0,0.26988069]
[1644236732356,0.05930581,42742.0,42737.0,0.26988069]
[1644236733355,0.0586553,42742.0,42737.0,0.26988069]
[1644236733557,0.05930581,42742.0,42737.0,0.26988069]
[1644236733957,0.05930581,42742.0,42737.0,0.29079096]
[1644236734356,0.05930581,42742.0,42737.0,0.02091027]
[1644236734556,0.0586553,42742.0,42737.0,0.02091027]
[1644236734755,0.004873,42741.0,42737.0,0.02091027]
[1644236734955,0.0049953,42741.0,42737.0,0.02091027]
[1644236735559,0.0001223,42741.0,42737.0,0.02091027]
[1644236735757,0.0586553,42742.0,42737.0,0.02091027]
[1644236736003,0.00077282,42741.0,42737.0,0.02091027]
[1644236736201,0.00065052,42741.0,42737.0,0.02091027]
[1644236736401,0.00077282,42741.0,42737.0,0.02091027]
[1644236736802,0.00065052,42741.0,42736.0,0.02073682]
[1644236738102,0.1586553,42742.0,42736.0,0.04237179]
[1644236738305,0.00065052,42741.0,42736.0,0.02163497]
[1644236738505,0.058549,42739.0,42736.0,0.02163497]
[1644236738705,0.20138151,42738.0,42736.0,0.02163497]
[1644236739303,0.28940462,42737.0,42736.0,0.02163497]
[1644236739504,0.34157762,42737.0,42736.0,0.00163497]
[1644236739956,0.44157762,42737.0,42736.0,0.00163497]
[1644236740460,0.75,42736.0,42727.0,0.00579608]
[1644236740657,0.058559,42734.0,42732.0,0.00065064]
[1644236740857,0.36139809,42733.0,42732.0,0.00065064]
[1644236741058,0.46139809,42733.0,42732.0,0.00065064]
[1644236741456,0.56139809,42733.0,42732.0,0.00065064]
[1644236741657,0.56139809,42733.0,42727.0,0.00579608]
[1644236741857,0.17569771,42732.0,42730.0,0.00065065]
[1644236742059,0.49106172,42731.0,42730.0,0.00065065]
[1644236742258,0.59106172,42731.0,42730.0,0.00065065]
[1644236742859,0.59106172,42731.0,42723.0,0.0211869]
[1644236743061,0.59106172,42731.0,42728.0,0.00065067]
[1644236743502,0.69106172,42731.0,42728.0,0.00065067]
[1644236743703,0.369306,42731.0,42728.0,0.00065067]
[1644236743903,0.269306,42731.0,42728.0,0.00065067]
[1644236744202,0.369306,42731.0,42722.0,0.18983459]
[1644236744403,0.369306,42731.0,42727.0,0.00065068]
[1644236744806,0.78665881,42730.0,42727.0,0.00065068]
[1644236745005,0.058577,42727.0,42719.0,0.01977438]
[1644236745306,0.052173,42726.0,42719.0,0.01977438]
[1644236745503,0.152173,42726.0,42719.0,0.01977438]
[1644236745707,0.19608902,42725.0,42719.0,0.01977438]
[1644236745903,0.052173,42724.0,42719.0,0.01977438]
[1644236746103,0.11075,42724.0,42719.0,0.01977438]
[1644236746303,0.21075,42724.0,42713.0,0.41829123]
[1644236746503,0.205877,42724.0,42713.0,0.41829123]
[1644236747555,0.07778264,42722.0,42713.0,0.41829123]
[1644236747756,0.058572,42720.0,42713.0,0.41829123]
[1644236747954,0.0473,42719.0,42713.0,0.41829123]
[1644236748155,0.0473,42719.0,42711.0,0.01885976]
[1644236749054,0.058573,42718.0,42713.0,0.00065084]
[1644236749253,0.117147,42716.0,42713.0,0.00065084]
[1644236749455,0.0473,42715.0,42713.0,0.00065084]
[1644236750154,0.0473,42715.0,42712.0,0.20598328]
[1644236750356,0.058572,42714.0,42712.0,0.20663413]
[1644236750756,0.058572,42714.0,42712.0,0.26520613]
[1644236751204,0.058572,42714.0,42712.0,0.05922285]
[1644236751405,0.058572,42714.0,42708.0,0.117148]
[1644236751406,0.058572,42714.0,42710.0,0.058578]
[1644236751603,0.058572,42714.0,42711.0,0.00045409]
[1644236752603,0.058572,42714.0,42710.0,0.30470125]
[1644236752806,0.058572,42714.0,42710.0,0.30515534]
[1644236753704,0.058572,42714.0,42710.0,0.30470125]
[1644236754004,0.058572,42714.0,42710.0,0.30535251]
[1644236754869,0.058572,42714.0,42710.0,0.30470125]
[1644236755068,0.058572,42714.0,42710.0,0.30535251]
[1644236756174,0.058572,42714.0,42710.0,0.30470125]
[1644236756371,0.058572,42714.0,42710.0,0.30535251]
[1644236758502,0.058572,42714.0,42710.0,0.30470125]
[1644236758707,0.058572,42714.0,42710.0,0.30535251]
[1644236759306,0.058572,42714.0,42710.0,0.54785187]
[1644236759708,0.058572,42714.0,42710.0,0.54720061]
[1644236759906,0.058572,42714.0,42710.0,0.54785187]
[1644236761008,0.058572,42714.0,42710.0,0.54720061]
[1644236761211,0.058572,42714.0,42710.0,0.54785187]
[1644236763355,0.058572,42714.0,42710.0,0.54720061]
[1644236763556,0.058572,42714.0,42710.0,0.54785187]
[1644236763956,0.058572,42714.0,42710.0,0.05922926]
[1644236764657,0.0473,42713.0,42710.0,0.05922926]
[1644236765057,0.164457,42713.0,42710.0,0.05922926]
[1644236765356,0.105875,42713.0,42710.0,0.05922926]
[1644236765760,0.105875,42713.0,42710.0,0.058578]
[1644236766608,0.205875,42713.0,42710.0,0.058578]
[1644236767012,0.205875,42713.0,42708.0,0.117148]
[1644236767210,0.004873,42712.0,42704.0,0.117159]
[1644236767511,0.004873,42712.0,42702.0,0.01961509]
[1644236767512,0.063458,42708.0,42702.0,0.01961509]
[1644236767709,0.063458,42708.0,42688.0,0.0022]
[1644236767710,0.5906,42705.0,42688.0,0.0022]
[1644236767911,0.25384995,42698.0,42694.0,0.058588]
[1644236768109,0.43227729,42697.0,42694.0,0.058588]
[1644236768310,0.07056977,42695.0,42694.0,0.028588]
[1644236768509,0.642773,42695.0,42694.0,0.028588]
[1644236768709,0.642773,42695.0,42688.0,0.2702915]
[1644236768710,0.742773,42695.0,42688.0,0.2702915]
[1644236768915,0.742773,42695.0,42692.0,0.35388201]
[1644236768916,0.2473,42695.0,42692.0,0.35388201]
[1644236769109,0.2473,42695.0,42692.0,0.40388201]
[1644236769309,0.1473,42695.0,42693.0,0.26860057]
[1644236769511,0.0473,42695.0,42694.0,0.3]
[1644236769762,0.0473,42695.0,42694.0,0.64278349]
[1644236769959,0.0473,42703.0,42696.0,0.058579]
[1644236770157,0.0473,42703.0,42699.0,0.05]
[1644236770358,0.175764,42709.0,42700.0,0.23659383]
[1644236770564,0.004873,42708.0,42705.0,0.05]
[1644236770761,0.104873,42708.0,42705.0,0.05]
[1644236770959,0.1,42708.0,42706.0,0.23715303]
[1644236771158,0.1,42708.0,42705.0,0.058573]
[1644236771361,0.158573,42708.0,42705.0,0.058573]
[1644236771560,0.158573,42708.0,42703.0,0.167141]
[1644236771957,0.158573,42708.0,42706.0,0.1909138]
[1644236771958,0.12809863,42708.0,42706.0,0.1909138]
[1644236772157,0.058573,42708.0,42706.0,0.1909138]
[1644236772358,0.058573,42708.0,42707.0,0.23686063]
[1644236773358,0.058573,42708.0,42707.0,0.28686063]
[1644236773605,0.058573,42708.0,42707.0,0.05]
[1644236775010,0.058573,42708.0,42706.0,0.21706472]
[1644236776513,0.058573,42708.0,42705.0,0.058576]
[1644236776716,0.058573,42708.0,42705.0,0.05922673]
[1644236777263,0.058573,42708.0,42705.0,0.10922673]
[1644236777457,0.058573,42708.0,42705.0,0.05922673]
[1644236778457,0.158573,42708.0,42705.0,0.05922673]
[1644236778859,0.158573,42708.0,42706.0,0.05]
[1644236779058,0.158573,42708.0,42707.0,0.31434561]
[1644236779458,0.058573,42708.0,42707.0,0.05]
[1644236779657,0.058573,42708.0,42707.0,0.04840177]
[1644236780758,0.058573,42708.0,42705.0,0.05922673]
[1644236782007,0.058573,42708.0,42705.0,0.058576]
[1644236782507,0.058573,42708.0,42706.0,0.05]
[1644236782907,0.058573,42708.0,42705.0,0.058576]
[1644236784109,0.058573,42708.0,42707.0,0.05]
[1644236784509,0.058573,42708.0,42705.0,0.058576]
[1644236787369,0.058573,42708.0,42703.0,0.38459568]
[1644236787571,0.058573,42708.0,42704.0,0.00057592]
[1644236787971,0.058573,42708.0,42704.0,0.05057592]
[1644236788171,0.058573,42708.0,42705.0,0.21339153]
[1644236788370,0.058573,42708.0,42704.0,0.05057592]
[1644236788613,0.058573,42708.0,42703.0,0.38459568]
[1644236788813,0.058573,42708.0,42704.0,0.00057593]
[1644236789214,0.004873,42707.0,42704.0,0.00057593]
[1644236789416,0.11716,42706.0,42704.0,0.00057593]
[1644236789617,0.004873,42705.0,42704.0,0.00057593]
[1644236789815,0.004873,42705.0,42701.0,0.05]
[1644236790014,0.11716,42706.0,42703.0,0.00057594]
[1644236791016,0.11716,42706.0,42701.0,0.05]
[1644236791215,0.11716,42706.0,42702.0,0.0005739]
[1644236791416,0.058579,42706.0,42702.0,0.0005739]
[1644236791817,0.40065736,42706.0,42702.0,0.0005739]
[1644236792019,0.20649045,42705.0,42702.0,0.0005739]
[1644236792272,0.0473,42704.0,42695.0,0.239166]
[1644236792462,0.0473,42704.0,42702.0,0.0005739]
[1644236792463,0.122048,42703.0,42702.0,0.0005739]
[1644236793264,0.20758927,42703.0,42702.0,0.0005739]
[1644236793564,0.20758927,42703.0,42700.0,0.00057392]
[1644236793764,0.30758927,42703.0,42700.0,0.00057392]
[1644236794165,0.46617927,42703.0,42700.0,0.00057392]
[1644236794362,0.004873,42702.0,42700.0,0.00057392]
[1644236794564,0.004873,42702.0,42695.0,0.239166]
[1644236794767,0.058587,42701.0,42699.0,0.05916126]
[1644236795365,0.117183,42701.0,42699.0,0.00057426]
[1644236795565,0.004873,42700.0,42699.0,0.00057426]
[1644236795768,0.004873,42700.0,42691.0,0.01]
[1644236796005,0.058597,42698.0,42697.0,0.00046763]
[1644236796404,0.06347,42698.0,42697.0,0.00046763]
[1644236796604,0.16347,42698.0,42697.0,0.00046763]
[1644236797006,0.16347,42698.0,42691.0,0.01]
[1644236797205,0.158597,42698.0,42691.0,0.01]
[1644236797408,0.158597,42698.0,42691.0,0.068595]
[1644236798406,0.158597,42698.0,42692.0,0.00057435]
[1644236798806,0.17778851,42698.0,42692.0,0.00057435]
[1644236799006,0.17778851,42698.0,42691.0,0.24358856]
[1644236799405,0.17778851,42698.0,42691.0,0.30218356]
[1644236799858,0.17778851,42698.0,42695.0,0.05]
[1644236800457,0.158597,42698.0,42695.0,0.05]
[1644236800756,0.158597,42698.0,42695.0,0.28589133]
[1644236801159,0.158597,42698.0,42697.0,0.24189177]
[1644236801558,0.058597,42698.0,42697.0,0.24189177]
[1644236805209,0.058597,42698.0,42695.0,0.28921656]
[1644236805808,0.058597,42698.0,42695.0,0.05]
[1644236806208,0.05851878,42698.0,42695.0,0.05]
[1644236809173,0.35,42696.0,42689.0,0.0011]
[1644236809373,0.058599,42695.0,42692.0,0.00021626]
[1644236809573,0.058599,42695.0,42690.0,0.00065113]
[1644236809774,0.058599,42695.0,42690.0,0.00086739]
[1644236809974,0.0473,42694.0,42690.0,0.00086739]
[1644236810173,0.23078137,42692.0,42690.0,0.00021626]
[1644236810377,0.105911,42691.0,42690.0,0.00065111]
[1644236810575,0.155911,42691.0,42690.0,0.00086737]
[1644236810774,0.110784,42691.0,42690.0,0.00086737]
[1644236811209,0.160784,42691.0,42690.0,0.00086737]
[1644236811412,0.160784,42691.0,42690.0,0.00021626]
[1644236811609,0.160784,42691.0,42689.0,0.0011]
[1644236811610,0.61252628,42691.0,42689.0,0.00131626]
[1644236811809,0.71252628,42691.0,42689.0,0.00131626]
[1644236812007,0.82485162,42691.0,42685.0,0.0011]
[1644236812208,0.05,42686.0,42685.0,0.0011]
[1644236812408,0.102173,42686.0,42685.0,0.0011]
[1644236812607,0.202173,42686.0,42685.0,0.0011]
[1644236813409,0.5638278,42686.0,42685.0,0.0011]
[1644236813807,0.6638278,42686.0,42685.0,0.0011]
[1644236814009,0.063501,42685.0,42683.0,0.00065118]
[1644236814209,0.43998976,42683.0,42679.0,0.00065118]
[1644236814412,0.43998976,42683.0,42677.0,0.06992918]
[1644236814413,0.05,42680.0,42677.0,0.06992918]
[1644236814770,0.052173,42679.0,42677.0,0.06992918]
[1644236814958,0.052173,42679.0,42674.0,0.0011]
[1644236815358,0.05,42675.0,42674.0,0.0011]
[1644236815564,0.102173,42675.0,42674.0,0.0011]
[1644236816560,0.41822466,42675.0,42674.0,0.0011]
[1644236816758,0.51822466,42675.0,42674.0,0.0011]
[1644236816957,0.61822466,42675.0,42674.0,0.0011]
[1644236817357,0.85269563,42675.0,42674.0,0.0011]
[1644236817559,0.794058,42675.0,42674.0,0.0011]
[1644236817758,0.67685966,42675.0,42674.0,0.0011]
[1644236818609,0.813233,42675.0,42674.0,0.0011]
[1644236820509,0.058635,42673.0,42666.0,0.01125129]
[1644236820712,0.063508,42672.0,42666.0,0.01125129]
[1644236821109,0.058635,42672.0,42666.0,0.01125129]
[1644236821708,0.408635,42672.0,42662.0,0.1217]
[1644236821909,0.508635,42672.0,42662.0,0.1217]
[1644236822363,0.058632,42670.0,42662.0,0.1217]
[1644236822764,0.058632,42670.0,42662.0,0.23302693]
[1644236823765,0.158632,42670.0,42664.0,0.00065138]
[1644236824772,0.158632,42670.0,42662.0,0.23302693]
[1644236824965,0.158632,42670.0,42665.0,0.00065137]
[1644236826008,0.158632,42670.0,42663.0,0.00021638]
[1644236826206,0.158632,42670.0,42662.0,0.41406301]
[1644236826207,0.158632,42670.0,42665.0,0.00065137]
[1644236826408,0.00134386,42669.0,42665.0,0.00065137]
[1644236827210,0.00134386,42669.0,42663.0,0.00021638]
[1644236827407,0.00134386,42669.0,42665.0,0.00065137]
[1644236827808,0.22251603,42668.0,42665.0,0.00065137]
[1644236828409,0.058634,42667.0,42663.0,0.00021638]
[1644236828616,0.22059444,42666.0,42664.0,0.00065138]
[1644236829610,0.22059444,42666.0,42662.0,0.00021638]
[1644236829860,0.22059444,42666.0,42663.0,0.00065139]
[1644236830462,0.24056102,42666.0,42663.0,0.00065139]
[1644236830662,0.24056102,42666.0,42662.0,0.00021638]
[1644236830862,0.24056102,42666.0,42662.0,0.0006514]
[1644236831062,0.24056102,42666.0,42662.0,0.00086778]
[1644236831663,0.51831144,42666.0,42662.0,0.00086778]
[1644236831865,0.51831144,42666.0,42662.0,0.00021638]
[1644236832063,0.51831144,42666.0,42662.0,0.00044961]
[1644236832263,0.51831144,42666.0,42662.0,0.00066599]
[1644236832464,0.31832385,42666.0,42662.0,0.05930399]
[1644236832763,0.31832385,42666.0,42662.0,0.10930399]
[1644236832764,0.23971627,42666.0,42662.0,0.10930399]
[1644236833164,0.23971627,42666.0,42662.0,0.10885438]
[1644236833365,0.23971627,42666.0,42662.0,0.10930399]
[1644236833912,0.23971627,42666.0,42662.0,0.3259948]
[1644236834110,0.23971627,42666.0,42662.0,0.10930399]
[1644236834309,0.23971627,42666.0,42662.0,0.10885438]
[1644236834509,0.23971627,42666.0,42662.0,0.10950618]
[1644236834709,0.22059444,42666.0,42662.0,0.10950618]
[1644236835509,0.22059444,42666.0,42662.0,0.10885438]
[1644236835709,0.22059444,42666.0,42662.0,0.10950618]
[1644236836711,0.22059444,42666.0,42662.0,0.10885438]
[1644236836911,0.22059444,42666.0,42662.0,0.10950618]
[1644236837964,0.22059444,42666.0,42662.0,0.10885438]
[1644236838165,0.22059444,42666.0,42662.0,0.10950618]
[1644236839168,0.22059444,42666.0,42662.0,0.10885438]
[1644236839366,0.22059444,42666.0,42662.0,0.10950618]
[1644236839667,0.22059444,42666.0,42665.0,0.59332104]
[1644236839866,0.22059444,42666.0,42665.0,0.94332104]
[1644236840066,0.22059444,42666.0,42665.0,0.676673]
[1644236841408,0.22059444,42666.0,42665.0,0.67688938]
[1644236843309,0.22009268,42666.0,42665.0,0.67688938]
[1644236843708,0.22009268,42666.0,42665.0,0.62688938]
[1644236845763,0.22009268,42666.0,42665.0,0.67688938]
[1644236848168,0.22009268,42666.0,42665.0,0.62688938]
[1644236848369,0.22009268,42666.0,42665.0,0.00021638]
[1644236848609,0.22009268,42666.0,42665.0,0.326673]
[1644236848810,0.22009268,42666.0,42665.0,0.32688938]
[1644236849409,0.22009268,42666.0,42665.0,0.37688938]
[1644236850308,0.22009268,42666.0,42665.0,0.32688938]
[1644236851710,0.22009268,42666.0,42665.0,0.00021638]
[1644236852012,0.22009268,42666.0,42664.0,0.05884238]
[1644236852869,0.22009268,42666.0,42647.0,3.63402]
[1644236852870,0.75,42664.0,42647.0,3.63402]
[1644236853070,0.75,42664.0,42647.0,0.001]
[1644236853071,0.05,42653.0,42647.0,0.001]
[1644236853267,0.05,42653.0,42648.0,0.00021638]
[1644236853470,0.052173,42652.0,42648.0,0.00021638]
[1644236853865,0.052173,42652.0,42647.0,0.001]
[1644236854266,0.110833,42652.0,42647.0,0.001]
[1644236855069,0.110833,42652.0,42647.0,0.059657]
[1644236855367,0.110833,42652.0,42647.0,0.001]
[1644236855766,0.65446741,42652.0,42647.0,0.001]
[1644236856013,0.75446741,42652.0,42647.0,0.001]
[1644236856213,0.61960102,42652.0,42647.0,0.001]
[1644236856613,0.29165509,42650.0,42647.0,0.001]
[1644236856813,0.05,42648.0,42647.0,0.001]
[1644236857012,0.36320123,42648.0,42647.0,0.001]
[1644236857412,0.51050123,42648.0,42647.0,0.001]
[1644236857617,0.202173,42648.0,42647.0,0.001]
[1644236857815,0.058679,42646.0,42645.0,0.00065139]
[1644236858014,0.110852,42646.0,42645.0,0.00065139]
[1644236858413,0.228206,42646.0,42641.0,0.01]
[1644236858614,0.228206,42646.0,42643.0,0.00044678]
[1644236858615,0.122226,42645.0,42643.0,0.00044678]
[1644236858814,0.0973,42644.0,42643.0,0.00044678]
[1644236859016,0.160849,42644.0,42643.0,0.00044678]
[1644236859635,0.155976,42644.0,42641.0,0.01]
[1644236859874,0.155976,42644.0,42641.0,0.0104468]
[1644236860075,0.25,42643.0,42636.0,0.52795516]
[1644236860278,0.058674,42641.0,42637.0,0.058675]
[1644236862075,0.058674,42641.0,42637.0,0.05912136]
[1644236862273,0.058674,42641.0,42637.0,0.10912136]
[1644236862674,0.058674,42641.0,42637.0,0.05076108]
[1644236863074,0.058674,42641.0,42637.0,0.05031472]
[1644236863274,0.058674,42641.0,42637.0,0.05076108]
[1644236863917,0.18751899,42642.0,42637.0,0.05076108]
[1644236864118,0.10364579,42642.0,42637.0,0.05076108]
[1644236864316,0.1623284,42642.0,42637.0,0.05031472]
[1644236864517,0.1500928,42642.0,42637.0,0.05096684]
[1644236865522,0.058674,42641.0,42637.0,0.05031472]
[1644236865718,0.058674,42641.0,42637.0,0.05096684]
[1644236865920,0.11737,42640.0,42637.0,0.05096684]
[1644236866120,0.05,42638.0,42637.0,0.00118116]
[1644236866323,0.41219612,42638.0,42637.0,0.00096684]
[1644236866719,0.51219612,42638.0,42637.0,0.00031472]
[1644236867119,0.61219612,42638.0,42637.0,0.00031472]
[1644236868768,0.61706912,42638.0,42637.0,0.00031472]
[1644236868970,0.302173,42638.0,42637.0,0.00031472]
[1644236869568,0.60818135,42638.0,42637.0,0.00031472]
[1644236871414,0.4,42637.0,42636.0,0.00021432]
[1644236871616,0.4,42637.0,42636.0,0.00062944]
[1644236871617,0.76098164,42637.0,42636.0,0.00062944]
[1644236871816,0.86098164,42637.0,42636.0,0.00062944]
[1644236872016,0.96098164,42637.0,42636.0,0.00125888]
[1644236872515,0.058696,42635.0,42633.0,0.42]
[1644236872716,0.46776212,42635.0,42634.0,0.42121433]
[1644236872918,0.56776212,42635.0,42634.0,0.421]
[1644236873118,0.56776212,42635.0,42634.0,0.068813]
[1644236873322,0.56776212,42635.0,42632.0,0.00021433]
[1644236873323,0.117399,42633.0,42632.0,0.00021433]
[1644236873520,0.75,42632.0,42618.0,0.0011]
[1644236873726,0.11741137,42630.0,42618.0,0.0011]
[1644236873920,0.91958373,42631.0,42618.0,0.0011]
[1644236873921,0.05,42619.0,42618.0,0.0011]
[1644236874118,0.05,42619.0,42611.0,0.01]
[1644236874119,0.234919,42617.0,42611.0,0.01]
[1644236874320,0.55,42616.0,42611.0,0.01]
[1644236874520,0.058726,42613.0,42611.0,0.01]
[1644236874774,0.052173,42612.0,42611.0,0.01]
[1644236874970,0.052173,42612.0,42609.0,0.00332782]
[1644236875169,0.0473,42612.0,42609.0,0.00332782]
[1644236875368,0.004873,42611.0,42609.0,0.00332782]
[1644236875569,0.0473,42610.0,42609.0,0.00332782]
[1644236875768,0.052173,42610.0,42609.0,0.00332782]
[1644236875973,0.169629,42610.0,42609.0,0.00332782]
[1644236876172,0.754873,42609.0,42608.0,0.003]
[1644236876374,0.152173,42609.0,42608.0,0.003]
[1644236877073,0.151333,42609.0,42608.0,0.003]
[1644236877472,0.11006,42609.0,42608.0,0.003]
[1644236878077,0.75,42607.0,42604.0,0.05]
[1644236878275,0.05,42605.0,42593.0,0.0011]
[1644236878532,0.80875229,42599.0,42590.0,0.00077324]
[1644236878727,0.0473,42598.0,42590.0,0.00077324]
[1644236878935,0.0473,42598.0,42597.0,0.00044452]
[1644236879127,0.0473,42598.0,42591.0,0.00177834]
[1644236879128,0.4,42597.0,42591.0,0.00177834]
[1644236879326,0.106053,42596.0,42591.0,0.00177834]
[1644236880028,0.106053,42596.0,42590.0,0.00077324]
[1644236880228,0.05874983,42595.0,42590.0,0.00077324]
[1644236880432,0.05,42591.0,42590.0,0.00077324]
[1644236880828,0.0973,42591.0,42590.0,0.00077324]
[1644236881034,0.1973,42591.0,42585.0,0.64816324]
[1644236881232,0.1973,42591.0,42585.0,0.25928044]
[1644236881233,0.35792947,42588.0,42585.0,0.25928044]
[1644236881528,0.37237982,42587.0,42585.0,0.25928044]
[1644236881730,0.6,42586.0,42581.0,0.01]
[1644236881930,0.0473,42585.0,42581.0,0.01]
[1644236882130,0.05,42584.0,42581.0,0.01]
[1644236882378,0.0473,42585.0,42582.0,0.21969603]
[1644236882379,0.0473,42583.0,42582.0,0.21969603]
[1644236882583,0.0473,42583.0,42582.0,0.84650203]
[1644236882979,0.0473,42583.0,42582.0,0.626806]
[1644236883176,0.04434682,42583.0,42582.0,0.326806]
[1644236883584,0.69925916,42583.0,42581.0,0.01]
[1644236883778,0.49925916,42583.0,42581.0,0.01]
[1644236885376,0.29434682,42583.0,42581.0,0.01]
[1644236885577,0.19434682,42583.0,42581.0,0.01]
[1644236886511,0.37503434,42582.0,42581.0,0.01]
[1644236886712,0.42233434,42582.0,42581.0,0.01]
[1644236886909,0.52233434,42582.0,42581.0,0.01]
[1644236887310,0.62233434,42582.0,42581.0,0.01]
[1644236887512,0.2473,42582.0,42581.0,0.01]
[1644236887912,0.1973,42582.0,42581.0,0.01]
[1644236890797,0.1,42582.0,42581.0,0.01]
[1644236890993,0.1,42582.0,42581.0,0.0573]
[1644236891192,0.00102295,42583.0,42581.0,0.684106]
[1644236891391,0.01917967,42585.0,42582.0,0.626806]
[1644236891594,0.01917967,42585.0,42583.0,0.53359823]
[1644236891796,0.01917967,42585.0,42584.0,0.626806]
[1644236891992,0.01917967,42585.0,42584.0,0.374106]
[1644236892191,0.01917967,42585.0,42584.0,0.424106]
[1644236892394,0.12612413,42593.0,42584.0,0.774106]
[1644236892692,0.12612413,42593.0,42586.0,0.326806]
[1644236892693,0.02046542,42589.0,42586.0,0.326806]
[1644236892891,0.02046542,42589.0,42587.0,0.3473]
[1644236893091,0.02046542,42589.0,42588.0,0.58096487]
[1644236893293,0.02046542,42589.0,42588.0,0.96493604]
[1644236893516,0.02046542,42589.0,42588.0,0.62826487]
[1644236893714,0.02046542,42589.0,42588.0,0.374106]
[1644236893913,0.02046542,42589.0,42588.0,0.674106]
[1644236894716,0.02046542,42589.0,42588.0,0.95682035]
[1644236895519,0.01834385,42598.0,42588.0,0.68001435]
[1644236895719,0.01834385,42598.0,42597.0,0.26784995]
[1644236895921,0.01834385,42598.0,42597.0,0.55441402]
[1644236896119,0.01834385,42598.0,42597.0,0.85023744]
[1644236896319,0.0108454,42598.0,42597.0,0.85023744]
[1644236896519,0.0108454,42598.0,42597.0,0.60171402]
[1644236896822,0.1,42603.0,42597.0,0.60921247]
[1644236897017,0.1,42603.0,42598.0,0.24570302]
[1644236897264,0.1,42603.0,42599.0,0.0473]
[1644236897768,0.1,42603.0,42600.0,0.326806]
[1644236897964,0.1,42603.0,42601.0,0.24290012]
[1644236898165,0.01805385,42607.0,42601.0,0.24290012]
[1644236898465,0.01805385,42607.0,42601.0,0.35162412]
[1644236898664,0.01805385,42607.0,42601.0,0.30162412]
[1644236899066,0.01805385,42607.0,42601.0,0.24290012]
[1644236899470,0.01805385,42607.0,42600.0,0.00021415]
[1644236899668,0.01805385,42607.0,42600.0,0.05872]
[1644236899867,0.01805385,42607.0,42600.0,0.05893415]
[1644236900470,0.01805385,42607.0,42600.0,0.00021415]
[1644236900669,0.01805385,42607.0,42601.0,0.0473]
[1644236901113,0.00092974,42602.0,42601.0,0.04751415]
[1644236901313,0.00092974,42602.0,42601.0,0.424106]
[1644236901516,0.00092974,42602.0,42601.0,0.95587805]
[1644236903815,0.00092974,42602.0,42601.0,1.24493102]
[1644236906467,0.01891217,42611.0,42603.0,0.326806]
[1644236906468,0.01995813,42611.0,42603.0,0.326806]
[1644236906768,0.01995813,42611.0,42605.0,0.05871]
[1644236906969,0.00104596,42611.0,42606.0,0.30747477]
[1644236907170,0.02214205,42611.0,42606.0,0.35747477]
[1644236907370,0.02214205,42611.0,42606.0,0.40768892]
[1644236907770,0.02214205,42611.0,42607.0,0.326806]
[1644236907969,0.02214205,42611.0,42608.0,0.0473]
[1644236908168,0.02214205,42611.0,42609.0,0.326806]
[1644236908371,0.05,42622.0,42612.0,0.75]
[1644236908626,0.05,42622.0,42615.0,0.058698]
[1644236908928,0.1,42624.0,42611.0,0.00021415]
[1644236908929,0.05,42616.0,42611.0,0.00021415]
[1644236909130,0.05,42616.0,42610.0,0.00021415]
[1644236909323,0.05,42616.0,42606.0,0.01906358]
[1644236909524,0.05872,42614.0,42606.0,0.01906358]
[1644236910123,0.10602,42614.0,42606.0,0.01906358]
[1644236910524,0.10602,42614.0,42607.0,0.058716]
[1644236910727,0.10573737,42614.0,42608.0,0.05]
[1644236910924,0.10573737,42614.0,42608.0,0.05021415]
[1644236911728,0.00105564,42610.0,42608.0,0.05021415]
[1644236911924,0.00105564,42610.0,42608.0,0.05]
[1644236912973,0.05,42609.0,42608.0,0.05]
[1644236913178,0.0973,42609.0,42608.0,0.05]
[1644236914574,0.1973,42609.0,42608.0,0.05]
[1644236921470,0.1973,42609.0,42608.0,0.0514998]
[1644236921671,0.15,42609.0,42608.0,0.0514998]
[1644236926320,0.15,42609.0,42608.0,0.05]
[1644236928378,0.15,42609.0,42608.0,0.0204]
[1644236931519,0.15,42609.0,42608.0,0.02170109]
[1644236932718,0.1973,42609.0,42608.0,0.02170109]
[1644236933521,0.1973,42609.0,42605.0,0.0006521]
[1644236933522,0.7879,42609.0,42605.0,0.0006521]
[1644236933719,0.05,42606.0,42605.0,0.0006521]
[1644236933920,0.0973,42606.0,42605.0,0.0006521]
[1644236934121,0.058737,42605.0,42604.0,0.02040398]
[1644236934318,0.106037,42605.0,42604.0,0.02040398]
[1644236934518,0.106037,42605.0,42604.0,0.24834694]
[1644236934968,0.105617,42605.0,42604.0,0.24834694]
[1644236935570,0.205617,42605.0,42604.0,0.24834694]
[1644236935774,0.205617,42605.0,42602.0,0.00065213]
[1644236936376,0.205617,42605.0,42601.0,0.00021415]
[1644236936574,0.205617,42605.0,42601.0,0.00065214]
[1644236936875,0.205617,42605.0,42601.0,0.00086629]
[1644236937573,0.205617,42605.0,42601.0,0.00021415]
[1644236937873,0.205617,42605.0,42601.0,0.00065215]
[1644236938917,0.205617,42605.0,42600.0,0.30210857]
[1644236939116,0.205617,42605.0,42601.0,0.00065215]
[1644236939718,0.1473,42605.0,42601.0,0.00065215]
[1644236940018,0.14794554,42605.0,42600.0,0.30189442]
[1644236940219,0.14794554,42605.0,42601.0,0.00065215]
[1644236940420,0.04794554,42605.0,42601.0,0.00065215]
[1644236941021,0.17040555,42611.0,42603.0,0.326806]
[1644236941224,0.07040555,42611.0,42605.0,0.326806]
[1644236941423,0.07040555,42611.0,42605.0,0.43650641]
[1644236941620,0.07040555,42611.0,42606.0,0.376806]
[1644236941821,0.07040555,42611.0,42608.0,0.55435338]
[1644236942275,0.07040555,42611.0,42610.0,0.08650276]